{"text_format":"1","workbook":"xlsx","n_sheets":4,"sheets":["Request Form","Request Form (Grant Summary)","Expense Code Summary","GT_Custom"],"not_rendered":{"charts":0,"images":6,"macros":1,"external_links":1,"defined_names":5,"comments":0,"pivot_tables":0},"unopened":[],"bounds":{"document_bytes":16777216,"sheet_cells":100000,"rows_first":2000,"rows_last":500,"rows_between":2000,"halvings":0,"cell_chars":16384,"cell_head_chars":4096},"cells_cut":0,"cells_raw":0,"read":"whole","date_system":"1900"}

{"sheet":"Request Form","index":0,"n_rows":133,"n_cols":19,"rows_kept":133,"cut":false,"hidden":false,"merged":[[0,7,0,14],[1,7,1,14],[11,3,11,4],[5,3,5,6],[7,3,7,6],[9,3,9,4],[3,3,3,6],[10,10,10,16],[3,9,3,14],[5,9,5,14],[9,9,9,14],[11,9,11,14],[13,9,13,14],[16,4,16,7],[18,4,18,7],[20,4,20,7],[98,1,98,9],[29,4,29,7],[31,4,31,7],[33,4,33,7],[35,4,35,7],[37,4,37,7],[39,4,39,7],[22,4,22,7],[24,4,24,7],[26,4,26,7]]}
[null,null,null,null,null,null,null,"Fund for Shared Insight"]
[null,null,null,null,null,null,null,"Payment Request Form"]
[]
[null,"Date:",null,null,null,null,null,"Submitted to:",null,"Michelle Mengel"]
[]
[null,"Submitted by:",null,null,null,null,null,"Payment total:",null,{"$f":"$Q$99","v":0}]
[]
[null,"Payee:",null,null,null,null,null,"Report Approvals"]
[]
[null,"New Payee?",null,null,null,null,null,"Project Approval:"]
[]
[null,"Employee?",null,"No",null,null,null,"RPA Approval:"]
[]
[null,null,null,null,null,null,null,"Date Approved:"]
[]
[null,"Payee Information",null,null,"Please complete the payee information section below."]
[null,"Contact:"]
[]
[null,"Title:"]
[]
[null,"Address:"]
[]
[]
[]
[null,"Phone:"]
[]
[null,"E-mail:"]
[]
[null,"Bank Information ",null,null,"Please complete the bank information section below."]
[null,"Account Name:"]
[]
[null,"Bank Name:"]
[]
[null,"Branch Address:"]
[]
[null,"Account Number:"]
[]
[null,"Routing Number: "]
[]
[null,"Swift Code:",null,null,null,null,null,null,null,"(Required for international transfers.)"]
[]
[null,"Expense Details"]
[]
[null,"Receipt #",null,"Date",null,"Business Purpose and Description",null,"Category",null,"Expense",null,"Project ID",null,null,"Revenue Source",null,"Amount",null,"Account Code - Project -Revenue Source"]
[null,null,null,null,null,null,null,"Select from list",null,null,null,"Select from list",null,null,"Select from list",null,null,null,"(Internal use only)"]
[null,null,null,null,null,null,null,"OTHER: Events"," ",{"$f":"IFERROR(INDEX('Expense Code Summary'!G$10:G$62,MATCH(H46,'Expense Code Summary'!F$10:F$62,0)),\"0000\")","v":7325},null,"6076-00 Fund for Shared Insight",{"$f":"LEFT(L46,7)","v":"6076-00"}," ","6076-Cohort3",null,null,null,{"$f":"IF(J46=\"0000\",\"  \",CONCATENATE(\"1\",\"-\",J46,\"-\",\"10\",\"  \",M46,\" \",IF(O46>1,CONCATENATE(\" \",O46,\" \"),\"\")))","v":"1-7325-10  6076-00  6076-Cohort3 "}]
[null,null,null,null,null,null,null,"OTHER: Events"," ",{"$f":"IFERROR(INDEX('Expense Code Summary'!G$10:G$62,MATCH(H47,'Expense Code Summary'!F$10:F$62,0)),\"0000\")","v":7325},null,"6076-00 Fund for Shared Insight",{"$f":"LEFT(L47,7)","v":"6076-00"}," ","6076-Cohort3",null,null,null,{"$f":"IF(J47=\"0000\",\"  \",CONCATENATE(\"1\",\"-\",J47,\"-\",\"10\",\"  \",M47,\" \",IF(O47>1,CONCATENATE(\" \",O47,\" \"),\"\")))","v":"1-7325-10  6076-00  6076-Cohort3 "}]
[null,null,null,null,null,null,null,"OTHER: Events"," ",{"$f":"IFERROR(INDEX('Expense Code Summary'!G$10:G$62,MATCH(H48,'Expense Code Summary'!F$10:F$62,0)),\"0000\")","v":7325},null,"6076-00 Fund for Shared Insight","6076-00"," ","6076-Cohort3",null,null,null,"1-7325-10  6076-00  6076-Cohort3 "]
[null,null,null,null,null,null,null,"OTHER: Events"," ",{"$f":"IFERROR(INDEX('Expense Code Summary'!G$10:G$62,MATCH(H49,'Expense Code Summary'!F$10:F$62,0)),\"0000\")","v":7325},null,"6076-00 Fund for Shared Insight","6076-00"," ","6076-Cohort3",null,null,null,"1-7325-10  6076-00  6076-Cohort3 "]
[null,null,null,null,null,null,null,"OTHER: Events"," ",{"$f":"IFERROR(INDEX('Expense Code Summary'!G$10:G$62,MATCH(H50,'Expense Code Summary'!F$10:F$62,0)),\"0000\")","v":7325},null,"6076-00 Fund for Shared Insight","6076-00"," ","6076-Cohort3",null,null,null,"1-7325-10  6076-00  6076-Cohort3 "]
[null,null,null,null,null,null,null,"OTHER: Events"," ",{"$f":"IFERROR(INDEX('Expense Code Summary'!G$10:G$62,MATCH(H51,'Expense Code Summary'!F$10:F$62,0)),\"0000\")","v":7325},null,"6076-00 Fund for Shared Insight","6076-00"," ","6076-Cohort3",null,null,null,"1-7325-10  6076-00  6076-Cohort3 "]
[null,null,null,null,null,null,null,"OTHER: Events"," ",{"$f":"IFERROR(INDEX('Expense Code Summary'!G$10:G$62,MATCH(H52,'Expense Code Summary'!F$10:F$62,0)),\"0000\")","v":7325},null,"6076-00 Fund for Shared Insight","6076-00"," ","6076-Cohort3",null,null,null,"1-7325-10  6076-00  6076-Cohort3 "]
[null,null,null,null,null,null,null,"OTHER: Events"," ",{"$f":"IFERROR(INDEX('Expense Code Summary'!G$10:G$62,MATCH(H53,'Expense Code Summary'!F$10:F$62,0)),\"0000\")","v":7325},null,"6076-00 Fund for Shared Insight","6076-00"," ","6076-Cohort3",null,null,null,"1-7325-10  6076-00  6076-Cohort3 "]
[null,null,null,null,null,null,null,"OTHER: Events"," ",{"$f":"IFERROR(INDEX('Expense Code Summary'!G$10:G$62,MATCH(H54,'Expense Code Summary'!F$10:F$62,0)),\"0000\")","v":7325},null,"6076-00 Fund for Shared Insight","6076-00"," ","6076-Cohort3",null,null,null,"1-7325-10  6076-00  6076-Cohort3 "]
[null,null,null,null,null,null,null,"OTHER: Events"," ",{"$f":"IFERROR(INDEX('Expense Code Summary'!G$10:G$62,MATCH(H55,'Expense Code Summary'!F$10:F$62,0)),\"0000\")","v":7325},null,"6076-00 Fund for Shared Insight","6076-00"," ","6076-Cohort3",null,null,null,"1-7325-10  6076-00  6076-Cohort3 "]
[null,null,null,null,null,null,null,"OTHER: Events"," ",{"$f":"IFERROR(INDEX('Expense Code Summary'!G$10:G$62,MATCH(H56,'Expense Code Summary'!F$10:F$62,0)),\"0000\")","v":7325},null,"6076-00 Fund for Shared Insight","6076-00"," ","6076-Cohort3",null,null,null,"1-7325-10  6076-00  6076-Cohort3 "]
[null,null,null,null,null,null,null,"OTHER: Events"," ",{"$f":"IFERROR(INDEX('Expense Code Summary'!G$10:G$62,MATCH(H57,'Expense Code Summary'!F$10:F$62,0)),\"0000\")","v":7325},null,"6076-00 Fund for Shared Insight","6076-00"," ","6076-Cohort3",null,null,null,"1-7325-10  6076-00  6076-Cohort3 "]
[null,null,null,null,null,null,null,"OTHER: Events"," ",{"$f":"IFERROR(INDEX('Expense Code Summary'!G$10:G$62,MATCH(H58,'Expense Code Summary'!F$10:F$62,0)),\"0000\")","v":7325},null,"6076-00 Fund for Shared Insight","6076-00"," ","6076-Cohort3",null,null,null,"1-7325-10  6076-00  6076-Cohort3 "]
[null,null,null,null,null,null,null,"OTHER: Events"," ",{"$f":"IFERROR(INDEX('Expense Code Summary'!G$10:G$62,MATCH(H59,'Expense Code Summary'!F$10:F$62,0)),\"0000\")","v":7325},null,"6076-00 Fund for Shared Insight","6076-00"," ","6076-Cohort3",null,null,null,"1-7325-10  6076-00  6076-Cohort3 "]
[null,null,null,null,null,null,null,"OTHER: Events"," ",{"$f":"IFERROR(INDEX('Expense Code Summary'!G$10:G$62,MATCH(H60,'Expense Code Summary'!F$10:F$62,0)),\"0000\")","v":7325},null,"6076-00 Fund for Shared Insight","6076-00"," ","6076-Cohort3",null,null,null,"1-7325-10  6076-00  6076-Cohort3 "]
[null,null,null,null,null,null,null,"OTHER: Events"," ",{"$f":"IFERROR(INDEX('Expense Code Summary'!G$10:G$62,MATCH(H61,'Expense Code Summary'!F$10:F$62,0)),\"0000\")","v":7325},null,"6076-00 Fund for Shared Insight","6076-00"," ","6076-Cohort3",null,null,null,"1-7325-10  6076-00  6076-Cohort3 "]
[null,null,null,null,null,null,null,"OTHER: Events"," ",{"$f":"IFERROR(INDEX('Expense Code Summary'!G$10:G$62,MATCH(H62,'Expense Code Summary'!F$10:F$62,0)),\"0000\")","v":7325},null,"6076-00 Fund for Shared Insight","6076-00"," ","6076-Cohort3",null,null,null,"1-7325-10  6076-00  6076-Cohort3 "]
[null,null,null,null,null,null,null,"OTHER: Events"," ",{"$f":"IFERROR(INDEX('Expense Code Summary'!G$10:G$62,MATCH(H63,'Expense Code Summary'!F$10:F$62,0)),\"0000\")","v":7325},null,"6076-00 Fund for Shared Insight","6076-00"," ","6076-Cohort3",null,null,null,"1-7325-10  6076-00  6076-Cohort3 "]
[null,null,null,null,null,null,null,"OTHER: Events"," ",{"$f":"IFERROR(INDEX('Expense Code Summary'!G$10:G$62,MATCH(H64,'Expense Code Summary'!F$10:F$62,0)),\"0000\")","v":7325},null,"6076-00 Fund for Shared Insight","6076-00"," ","6076-Cohort3",null,null,null,"1-7325-10  6076-00  6076-Cohort3 "]
[null,null,null,null,null,null,null,"OTHER: Events"," ",{"$f":"IFERROR(INDEX('Expense Code Summary'!G$10:G$62,MATCH(H65,'Expense Code Summary'!F$10:F$62,0)),\"0000\")","v":7325},null,"6076-00 Fund for Shared Insight","6076-00"," ","6076-Cohort3",null,null,null,"1-7325-10  6076-00  6076-Cohort3 "]
[null,null,null,null,null,null,null,"OTHER: Events"," ",{"$f":"IFERROR(INDEX('Expense Code Summary'!G$10:G$62,MATCH(H66,'Expense Code Summary'!F$10:F$62,0)),\"0000\")","v":7325},null,"6076-00 Fund for Shared Insight","6076-00"," ","6076-Cohort3",null,null,null,"1-7325-10  6076-00  6076-Cohort3 "]
[null,null,null,null,null,null,null,"OTHER: Events"," ",{"$f":"IFERROR(INDEX('Expense Code Summary'!G$10:G$62,MATCH(H67,'Expense Code Summary'!F$10:F$62,0)),\"0000\")","v":7325},null,"6076-00 Fund for Shared Insight","6076-00"," ","6076-Cohort3",null,null,null,"1-7325-10  6076-00  6076-Cohort3 "]
[null,null,null,null,null,null,null,"OTHER: Events"," ",{"$f":"IFERROR(INDEX('Expense Code Summary'!G$10:G$62,MATCH(H68,'Expense Code Summary'!F$10:F$62,0)),\"0000\")","v":7325},null,"6076-00 Fund for Shared Insight","6076-00"," ","6076-Cohort3",null,null,null,"1-7325-10  6076-00  6076-Cohort3 "]
[null,null,null,null,null,null,null,"OTHER: Events"," ",{"$f":"IFERROR(INDEX('Expense Code Summary'!G$10:G$62,MATCH(H69,'Expense Code Summary'!F$10:F$62,0)),\"0000\")","v":7325},null,"6076-00 Fund for Shared Insight","6076-00"," ","6076-Cohort3",null,null,null,"1-7325-10  6076-00  6076-Cohort3 "]
[null,null,null,null,null,null,null,"OTHER: Events"," ",{"$f":"IFERROR(INDEX('Expense Code Summary'!G$10:G$62,MATCH(H70,'Expense Code Summary'!F$10:F$62,0)),\"0000\")","v":7325},null,"6076-00 Fund for Shared Insight","6076-00"," ","6076-Cohort3",null,null,null,"1-7325-10  6076-00  6076-Cohort3 "]
[null,null,null,null,null,null,null,"OTHER: Events"," ",{"$f":"IFERROR(INDEX('Expense Code Summary'!G$10:G$62,MATCH(H71,'Expense Code Summary'!F$10:F$62,0)),\"0000\")","v":7325},null,"6076-00 Fund for Shared Insight","6076-00"," ","6076-Cohort3",null,null,null,"1-7325-10  6076-00  6076-Cohort3 "]
[null,null,null,null,null,null,null,"OTHER: Events"," ",{"$f":"IFERROR(INDEX('Expense Code Summary'!G$10:G$62,MATCH(H72,'Expense Code Summary'!F$10:F$62,0)),\"0000\")","v":7325},null,"6076-00 Fund for Shared Insight","6076-00"," ","6076-Cohort3",null,null,null,"1-7325-10  6076-00  6076-Cohort3 "]
[null,null,null,null,null,null,null,"OTHER: Events"," ",{"$f":"IFERROR(INDEX('Expense Code Summary'!G$10:G$62,MATCH(H73,'Expense Code Summary'!F$10:F$62,0)),\"0000\")","v":7325},null,"6076-00 Fund for Shared Insight","6076-00"," ","6076-Cohort3",null,null,null,"1-7325-10  6076-00  6076-Cohort3 "]
[null,null,null,null,null,null,null,"OTHER: Events"," ",{"$f":"IFERROR(INDEX('Expense Code Summary'!G$10:G$62,MATCH(H74,'Expense Code Summary'!F$10:F$62,0)),\"0000\")","v":7325},null,"6076-00 Fund for Shared Insight","6076-00"," ","6076-Cohort3",null,null,null,"1-7325-10  6076-00  6076-Cohort3 "]
[null,null,null,null,null,null,null,"OTHER: Events"," ",{"$f":"IFERROR(INDEX('Expense Code Summary'!G$10:G$62,MATCH(H75,'Expense Code Summary'!F$10:F$62,0)),\"0000\")","v":7325},null,"6076-00 Fund for Shared Insight","6076-00"," ","6076-Cohort3",null,null,null,"1-7325-10  6076-00  6076-Cohort3 "]
[null,null,null,null,null,null,null,"OTHER: Events"," ",{"$f":"IFERROR(INDEX('Expense Code Summary'!G$10:G$62,MATCH(H76,'Expense Code Summary'!F$10:F$62,0)),\"0000\")","v":7325},null,"6076-00 Fund for Shared Insight","6076-00"," ","6076-Cohort3",null,null,null,"1-7325-10  6076-00  6076-Cohort3 "]
[null,null,null,null,null,null,null,"OTHER: Events"," ",{"$f":"IFERROR(INDEX('Expense Code Summary'!G$10:G$62,MATCH(H77,'Expense Code Summary'!F$10:F$62,0)),\"0000\")","v":7325},null,"6076-00 Fund for Shared Insight","6076-00"," ","6076-Cohort3",null,null,null,"1-7325-10  6076-00  6076-Cohort3 "]
[null,null,null,null,null,null,null,"OTHER: Events"," ",{"$f":"IFERROR(INDEX('Expense Code Summary'!G$10:G$62,MATCH(H78,'Expense Code Summary'!F$10:F$62,0)),\"0000\")","v":7325},null,"6076-00 Fund for Shared Insight","6076-00"," ","6076-Cohort3",null,null,null,"1-7325-10  6076-00  6076-Cohort3 "]
[null,null,null,null,null,null,null,"OTHER: Events"," ",{"$f":"IFERROR(INDEX('Expense Code Summary'!G$10:G$62,MATCH(H79,'Expense Code Summary'!F$10:F$62,0)),\"0000\")","v":7325},null,"6076-00 Fund for Shared Insight","6076-00"," ","6076-Cohort3",null,null,null,"1-7325-10  6076-00  6076-Cohort3 "]
[null,null,null,null,null,null,null,"OTHER: Events"," ",{"$f":"IFERROR(INDEX('Expense Code Summary'!G$10:G$62,MATCH(H80,'Expense Code Summary'!F$10:F$62,0)),\"0000\")","v":7325},null,"6076-00 Fund for Shared Insight","6076-00"," ","6076-Cohort3",null,null,null,"1-7325-10  6076-00  6076-Cohort3 "]
[null,null,null,null,null,null,null,"OTHER: Events"," ",{"$f":"IFERROR(INDEX('Expense Code Summary'!G$10:G$62,MATCH(H81,'Expense Code Summary'!F$10:F$62,0)),\"0000\")","v":7325},null,"6076-00 Fund for Shared Insight","6076-00"," ","6076-Cohort3",null,null,null,"1-7325-10  6076-00  6076-Cohort3 "]
[null,null,null,null,null,null,null,"OTHER: Events"," ",{"$f":"IFERROR(INDEX('Expense Code Summary'!G$10:G$62,MATCH(H82,'Expense Code Summary'!F$10:F$62,0)),\"0000\")","v":7325},null,"6076-00 Fund for Shared Insight","6076-00"," ","6076-Cohort3",null,null,null,"1-7325-10  6076-00  6076-Cohort3 "]
[null,null,null,null,null,null,null,"OTHER: Events"," ",{"$f":"IFERROR(INDEX('Expense Code Summary'!G$10:G$62,MATCH(H83,'Expense Code Summary'!F$10:F$62,0)),\"0000\")","v":7325},null,"6076-00 Fund for Shared Insight","6076-00"," ","6076-Cohort3",null,null,null,"1-7325-10  6076-00  6076-Cohort3 "]
[null,null,null,null,null,null,null,"OTHER: Events"," ",{"$f":"IFERROR(INDEX('Expense Code Summary'!G$10:G$62,MATCH(H84,'Expense Code Summary'!F$10:F$62,0)),\"0000\")","v":7325},null,"6076-00 Fund for Shared Insight","6076-00"," ","6076-Cohort3",null,null,null,"1-7325-10  6076-00  6076-Cohort3 "]
[null,null,null,null,null,null,null,"OTHER: Events"," ",{"$f":"IFERROR(INDEX('Expense Code Summary'!G$10:G$62,MATCH(H85,'Expense Code Summary'!F$10:F$62,0)),\"0000\")","v":7325},null,"6076-00 Fund for Shared Insight","6076-00"," ","6076-Cohort3",null,null,null,"1-7325-10  6076-00  6076-Cohort3 "]
[null,null,null,null,null,null,null,"OTHER: Events"," ",{"$f":"IFERROR(INDEX('Expense Code Summary'!G$10:G$62,MATCH(H86,'Expense Code Summary'!F$10:F$62,0)),\"0000\")","v":7325},null,"6076-00 Fund for Shared Insight","6076-00"," ","6076-Cohort3",null,null,null,"1-7325-10  6076-00  6076-Cohort3 "]
[null,null,null,null,null,null,null,"OTHER: Events"," ",{"$f":"IFERROR(INDEX('Expense Code Summary'!G$10:G$62,MATCH(H87,'Expense Code Summary'!F$10:F$62,0)),\"0000\")","v":7325},null,"6076-00 Fund for Shared Insight","6076-00"," ","6076-Cohort3",null,null,null,"1-7325-10  6076-00  6076-Cohort3 "]
[null,null,null,null,null,null,null,"OTHER: Events"," ",{"$f":"IFERROR(INDEX('Expense Code Summary'!G$10:G$62,MATCH(H88,'Expense Code Summary'!F$10:F$62,0)),\"0000\")","v":7325},null,"6076-00 Fund for Shared Insight","6076-00"," ","6076-Cohort3",null,null,null,"1-7325-10  6076-00  6076-Cohort3 "]
[null,null,null,null,null,null,null,"OTHER: Events"," ",{"$f":"IFERROR(INDEX('Expense Code Summary'!G$10:G$62,MATCH(H89,'Expense Code Summary'!F$10:F$62,0)),\"0000\")","v":7325},null,"6076-00 Fund for Shared Insight","6076-00"," ","6076-Cohort3",null,null,null,"1-7325-10  6076-00  6076-Cohort3 "]
[null,null,null,null,null,null,null,"OTHER: Events"," ",{"$f":"IFERROR(INDEX('Expense Code Summary'!G$10:G$62,MATCH(H90,'Expense Code Summary'!F$10:F$62,0)),\"0000\")","v":7325},null,"6076-00 Fund for Shared Insight","6076-00"," ","6076-Cohort3",null,null,null,"1-7325-10  6076-00  6076-Cohort3 "]
[null,null,null,null,null,null,null,"OTHER: Events"," ",{"$f":"IFERROR(INDEX('Expense Code Summary'!G$10:G$62,MATCH(H91,'Expense Code Summary'!F$10:F$62,0)),\"0000\")","v":7325},null,"6076-00 Fund for Shared Insight","6076-00"," ","6076-Cohort3",null,null,null,"1-7325-10  6076-00  6076-Cohort3 "]
[null,null,null,null,null,null,null,"OTHER: Events"," ",{"$f":"IFERROR(INDEX('Expense Code Summary'!G$10:G$62,MATCH(H92,'Expense Code Summary'!F$10:F$62,0)),\"0000\")","v":7325},null,"6076-00 Fund for Shared Insight","6076-00"," ","6076-Cohort3",null,null,null,"1-7325-10  6076-00  6076-Cohort3 "]
[null,null,null,null,null,null,null,"OTHER: Events"," ",{"$f":"IFERROR(INDEX('Expense Code Summary'!G$10:G$62,MATCH(H93,'Expense Code Summary'!F$10:F$62,0)),\"0000\")","v":7325},null,"6076-00 Fund for Shared Insight","6076-00"," ","6076-Cohort3",null,null,null,"1-7325-10  6076-00  6076-Cohort3 "]
[null,null,null,null,null,null,null,"OTHER: Events"," ",{"$f":"IFERROR(INDEX('Expense Code Summary'!G$10:G$62,MATCH(H94,'Expense Code Summary'!F$10:F$62,0)),\"0000\")","v":7325},null,"6076-00 Fund for Shared Insight","6076-00"," ","6076-Cohort3",null,null,null,"1-7325-10  6076-00  6076-Cohort3 "]
[null,null,null,null,null,null,null,"OTHER: Events"," ",{"$f":"IFERROR(INDEX('Expense Code Summary'!G$10:G$62,MATCH(H95,'Expense Code Summary'!F$10:F$62,0)),\"0000\")","v":7325},null,"6076-00 Fund for Shared Insight","6076-00"," ","6076-Cohort3",null,null,null,"1-7325-10  6076-00  6076-Cohort3 "]
[null,null,null,null,null,null,null,null," ",{"$f":"IFERROR(INDEX('Expense Code Summary'!G$10:G$62,MATCH(H96,'Expense Code Summary'!F$10:F$62,0)),\"0000\")","v":"0000"},null,null,{"$f":"LEFT(L96,7)","v":""}," ","0000-XXXXXX",null,null,null,{"$f":"IF(J96=\"0000\",\"  \",CONCATENATE(\"1\",\"-\",J96,\"-\",\"10\",\"  \",M96,\" \",IF(O96>1,CONCATENATE(\" \",O96,\" \"),\"\")))","v":"  "}]
[null,null,null,null,null,null,null,null," ",{"$f":"IFERROR(INDEX('Expense Code Summary'!D$4:D$35,MATCH(H97,'Expense Code Summary'!C$4:C$35,0)),\"0000\")","v":"0000"},null,null,""," ","0000-XXXXXX",null,null,null,{"$f":"IF(J97=\"0000\",\"  \",CONCATENATE(\"1\",\"-\",J97,\"-\",\"10\",\"  \",L97,\" \",IF(O97>1,CONCATENATE(\" \",O97,\" \"),\"\")))","v":"  "}]
[null,null,null,null,null,null,null,null," ",{"$f":"IFERROR(INDEX('Expense Code Summary'!D$4:D$35,MATCH(H98,'Expense Code Summary'!C$4:C$35,0)),\"0000\")","v":"0000"},null,null,""," ","0000-XXXXXX",null,null,null,{"$f":"IF(J98=\"0000\",\"  \",CONCATENATE(\"1\",\"-\",J98,\"-\",\"10\",\"  \",L98,\" \",IF(O98>1,CONCATENATE(\" \",O98,\" \"),\"\")))","v":"  "}]
[null,null,null,null,null,null,null,null,null,null,null,null,null,null,"Total",null,{"$f":"SUM(Q46:Q98)","v":0}]
[]
[null,"SUMMARY - FOR RPA USE ONLY-"]
[]
[null,null,null,null,"Account Code - Project ID - Revenue Source",null,null,"Subtotal"]
[null,null,null,null,{"$f":"IFERROR(INDEX($S$46:$S$99,MATCH(0,INDEX(COUNTIF($E$103:E103,$S$46:$S$99),0,0),0)),\" \")","v":"1-7325-10  6076-00  6076-Cohort3 "},null,null,{"$f":"SUMIF($S$46:$S$98,E104,$Q$46:$Q$98)","v":0}]
[null,null,null,null,{"$f":"IFERROR(INDEX($S$46:$S$99,MATCH(0,INDEX(COUNTIF($E$103:E104,$S$46:$S$99),0,0),0)),\" \")","v":"  "},null,null,0]
[null,null,null,null,{"$f":"IFERROR(INDEX($S$46:$S$99,MATCH(0,INDEX(COUNTIF($E$103:E105,$S$46:$S$99),0,0),0)),\" \")","v":0},null,null,0]
[null,null,null,null,{"$f":"IFERROR(INDEX($S$46:$S$99,MATCH(0,INDEX(COUNTIF($E$103:E106,$S$46:$S$99),0,0),0)),\" \")","v":" "},null,null,0]
[null,null,null,null,{"$f":"IFERROR(INDEX($S$46:$S$99,MATCH(0,INDEX(COUNTIF($E$103:E107,$S$46:$S$99),0,0),0)),\" \")","v":" "},null,null,0]
[null,null,null,null,{"$f":"IFERROR(INDEX($S$46:$S$99,MATCH(0,INDEX(COUNTIF($E$103:E108,$S$46:$S$99),0,0),0)),\" \")","v":" "},null,null,0]
[null,null,null,null,{"$f":"IFERROR(INDEX($S$46:$S$99,MATCH(0,INDEX(COUNTIF($E$103:E109,$S$46:$S$99),0,0),0)),\" \")","v":" "},null,null,0]
[null,null,null,null,{"$f":"IFERROR(INDEX($S$46:$S$99,MATCH(0,INDEX(COUNTIF($E$103:E110,$S$46:$S$99),0,0),0)),\" \")","v":" "},null,null,0]
[null,null,null,null,{"$f":"IFERROR(INDEX($S$46:$S$99,MATCH(0,INDEX(COUNTIF($E$103:E111,$S$46:$S$99),0,0),0)),\" \")","v":" "},null,null,0]
[null,null,null,null,{"$f":"IFERROR(INDEX($S$46:$S$99,MATCH(0,INDEX(COUNTIF($E$103:E112,$S$46:$S$99),0,0),0)),\" \")","v":" "},null,null,0]
[null,null,null,null,{"$f":"IFERROR(INDEX($S$46:$S$99,MATCH(0,INDEX(COUNTIF($E$103:E113,$S$46:$S$99),0,0),0)),\" \")","v":" "},null,null,0]
[null,null,null,null,{"$f":"IFERROR(INDEX($S$46:$S$99,MATCH(0,INDEX(COUNTIF($E$103:E114,$S$46:$S$99),0,0),0)),\" \")","v":" "},null,null,0]
[null,null,null,null,{"$f":"IFERROR(INDEX($S$46:$S$99,MATCH(0,INDEX(COUNTIF($E$103:E115,$S$46:$S$99),0,0),0)),\" \")","v":" "},null,null,0]
[null,null,null,null,{"$f":"IFERROR(INDEX($S$46:$S$99,MATCH(0,INDEX(COUNTIF($E$103:E116,$S$46:$S$99),0,0),0)),\" \")","v":" "},null,null,0]
[null,null,null,null,{"$f":"IFERROR(INDEX($S$46:$S$99,MATCH(0,INDEX(COUNTIF($E$103:E117,$S$46:$S$99),0,0),0)),\" \")","v":" "},null,null,0]
[null,null,null,null,{"$f":"IFERROR(INDEX($S$46:$S$99,MATCH(0,INDEX(COUNTIF($E$103:E118,$S$46:$S$99),0,0),0)),\" \")","v":" "},null,null,0]
[null,null,null,null,{"$f":"IFERROR(INDEX($S$46:$S$99,MATCH(0,INDEX(COUNTIF($E$103:E119,$S$46:$S$99),0,0),0)),\" \")","v":" "},null,null,0]
[null,null,null,null,{"$f":"IFERROR(INDEX($S$46:$S$99,MATCH(0,INDEX(COUNTIF($E$103:E120,$S$46:$S$99),0,0),0)),\" \")","v":" "},null,null,0]
[null,null,null,null,{"$f":"IFERROR(INDEX($S$46:$S$99,MATCH(0,INDEX(COUNTIF($E$103:E121,$S$46:$S$99),0,0),0)),\" \")","v":" "},null,null,0]
[null,null,null,null,{"$f":"IFERROR(INDEX($S$46:$S$99,MATCH(0,INDEX(COUNTIF($E$103:E122,$S$46:$S$99),0,0),0)),\" \")","v":" "},null,null,0]
[null,null,null,null,{"$f":"IFERROR(INDEX($S$46:$S$99,MATCH(0,INDEX(COUNTIF($E$103:E123,$S$46:$S$99),0,0),0)),\" \")","v":" "},null,null,0]
[null,null,null,null,{"$f":"IFERROR(INDEX($S$46:$S$99,MATCH(0,INDEX(COUNTIF($E$103:E124,$S$46:$S$99),0,0),0)),\" \")","v":" "},null,null,0]
[null,null,null,null,{"$f":"IFERROR(INDEX($S$46:$S$99,MATCH(0,INDEX(COUNTIF($E$103:E125,$S$46:$S$99),0,0),0)),\" \")","v":" "},null,null,0]
[null,null,null,null,{"$f":"IFERROR(INDEX($S$46:$S$99,MATCH(0,INDEX(COUNTIF($E$103:E126,$S$46:$S$99),0,0),0)),\" \")","v":" "},null,null,0]
[null,null,null,null,{"$f":"IFERROR(INDEX($S$46:$S$99,MATCH(0,INDEX(COUNTIF($E$103:E127,$S$46:$S$99),0,0),0)),\" \")","v":" "},null,null,0]
[null,null,null,null,{"$f":"IFERROR(INDEX($S$46:$S$99,MATCH(0,INDEX(COUNTIF($E$103:E128,$S$46:$S$99),0,0),0)),\" \")","v":" "},null,null,0]
[null,null,null,null,{"$f":"IFERROR(INDEX($S$46:$S$99,MATCH(0,INDEX(COUNTIF($E$103:E129,$S$46:$S$99),0,0),0)),\" \")","v":" "},null,null,0]
[null,null,null,null,{"$f":"IFERROR(INDEX($S$46:$S$99,MATCH(0,INDEX(COUNTIF($E$103:E130,$S$46:$S$99),0,0),0)),\" \")","v":" "},null,null,0]
[null,null,null,null,{"$f":"IFERROR(INDEX($S$46:$S$99,MATCH(0,INDEX(COUNTIF($E$103:E131,$S$46:$S$99),0,0),0)),\" \")","v":" "},null,null,0]
[null,null,null,null,null,"Total:",null,{"$f":"SUM(H104:H132)","v":0}]

{"sheet":"Request Form (Grant Summary)","index":1,"n_rows":110,"n_cols":18,"rows_kept":110,"cut":false,"hidden":true,"merged":[[20,4,20,7],[3,3,3,6],[5,3,5,6],[5,11,5,15],[7,3,7,6],[7,11,7,15],[9,3,9,6],[9,11,9,15],[10,10,10,15],[11,3,11,4],[14,4,14,7],[16,4,16,7],[18,4,18,7],[108,4,109,7],[22,4,22,7],[24,4,24,7],[27,4,27,7],[29,4,29,7],[31,4,31,7],[33,4,33,7],[35,4,35,7],[37,4,37,7],[72,1,72,9],[102,4,103,7],[105,4,106,7]]}
[null,null,null,null,null,null,null,null,null,null,null,null,null,null,null,"Paymet Request Form"]
[]
[]
[null,"Date:"]
[]
[null,"Project:",null,null,null,null,null,null,"Project ID:",null,null,"1234"]
[]
[null,"Submitted by:",null,null,null,null,null,null,"Submitted to:"]
[]
[null,"Payee:",null,null,null,null,null,null,"Payment total:",null,null,{"$f":"$P$73","v":520}]
[]
[null,"New Payee?",null,"Yes"]
[]
[null,"Payee Information",null,null,"Please complete the payee information section below and submit a W9 form. "]
[null,"Contact:"]
[]
[null,"Title:"]
[]
[null,"Address:"]
[]
[]
[]
[null,"Phone:"]
[]
[null,"E-mail:"]
[]
[null,"Bank Information ",null,null,"Please complete the bank information section below."]
[null,"Account Name:"]
[]
[null,"Bank Name:"]
[]
[null,"Branch Address:"]
[]
[null,"Account Number:"]
[]
[null,"Routing Number: "]
[]
[null,"Swift Code:",null,null,null,null,null,null,null,"(Required for international transfers.)"]
[]
[null,"Expense Details"]
[]
[null,"Receipt #",null,"Date",null,"Description",null,"Category",null,"Expense",null,"Initiative",null,"Grant",null,"Amount",null,"Account Code"]
[null,null,null,null,null,null,null,"Select from list",null,null,null,"If applicable",null,"If applicable",null,null,null,"(Internal use only)"]
[null,"SAMPLE 1",null,"2015-02-05",null,null,null,"PROF: Communications ",null,{"$f":"IFERROR(INDEX('Expense Code Summary'!D4:D35,MATCH(H44,'Expense Code Summary'!$C$4:$C$35,0)),\"0000\")","v":"0000"},null,"0067",null,"0000",null,10,null,{"$f":"IF(J44=\"0000\",\" \",CONCATENATE(\"12\",\"-\",J44,\"-\",\"10\",\"-\",L44,\"-\",\"51\",IF(N44<>\"0000\",CONCATENATE(\" Grant \",N44,\" \"),\"\")))","v":" "}]
[null,"SAMPLE 2",null,"2015-02-05",null,null,null,"OP: T&E -- Travel",null,{"$f":"IFERROR(INDEX('Expense Code Summary'!D5:D36,MATCH(H45,'Expense Code Summary'!$C$4:$C$35,0)),\"0000\")","v":"0000"},null,"0000",null,"5657",null,100,null,{"$f":"IF(J45=\"0000\",\" \",CONCATENATE(\"12\",\"-\",J45,\"-\",\"10\",\"-\",L45,\"-\",\"51\",IF(N45<>\"0000\",CONCATENATE(\" Grant \",N45,\" \"),\"\")))","v":" "}]
[null,"SAMPLE 3",null,"2015-02-05",null,null,null,"PROF: IT Services",null,{"$f":"IFERROR(INDEX('Expense Code Summary'!D6:D37,MATCH(H46,'Expense Code Summary'!$C$4:$C$35,0)),\"0000\")","v":"0000"},null,"0000",null,"0000",null,150,null," "]
[null,"SAMPLE 4",null,"2015-02-05",null,null,null,"OP: T&E -- Meals & Entertainment",null,{"$f":"IFERROR(INDEX('Expense Code Summary'!D7:D38,MATCH(H47,'Expense Code Summary'!$C$4:$C$35,0)),\"0000\")","v":"0000"},null,"0067",null,"5656",null,60,null," "]
[null,"SAMPLE 5",null,"2015-02-05",null,null,null,"PROF: Software & Database Development",null,{"$f":"IFERROR(INDEX('Expense Code Summary'!D8:D39,MATCH(H48,'Expense Code Summary'!$C$4:$C$35,0)),\"0000\")","v":"0000"},null,"0067",null,"5656",null,200,null," "]
[null,null,null,null,null,null,null,null,null,{"$f":"IFERROR(INDEX('Expense Code Summary'!D9:D40,MATCH(H49,'Expense Code Summary'!$C$4:$C$35,0)),\"0000\")","v":"0000"},null,"0000",null,"0000",null,null,null," "]
[null,null,null,null,null,null,null,null,null,{"$f":"IFERROR(INDEX('Expense Code Summary'!D10:D41,MATCH(H50,'Expense Code Summary'!$C$4:$C$35,0)),\"0000\")","v":"0000"},null,"0000",null,"0000",null,null,null," "]
[null,null,null,null,null,null,null,null,null,{"$f":"IFERROR(INDEX('Expense Code Summary'!D11:D42,MATCH(H51,'Expense Code Summary'!$C$4:$C$35,0)),\"0000\")","v":"0000"},null,"0000",null,"0000",null,null,null," "]
[null,null,null,null,null,null,null,null,null,{"$f":"IFERROR(INDEX('Expense Code Summary'!D12:D43,MATCH(H52,'Expense Code Summary'!$C$4:$C$35,0)),\"0000\")","v":"0000"},null,"0000",null,"0000",null,null,null," "]
[null,null,null,null,null,null,null,null,null,{"$f":"IFERROR(INDEX('Expense Code Summary'!D13:D44,MATCH(H53,'Expense Code Summary'!$C$4:$C$35,0)),\"0000\")","v":"0000"},null,"0000",null,"0000",null,null,null," "]
[null,null,null,null,null,null,null,null,null,{"$f":"IFERROR(INDEX('Expense Code Summary'!D14:D45,MATCH(H54,'Expense Code Summary'!$C$4:$C$35,0)),\"0000\")","v":"0000"},null,"0000",null,"0000",null,null,null," "]
[null,null,null,null,null,null,null,null,null,{"$f":"IFERROR(INDEX('Expense Code Summary'!D15:D46,MATCH(H55,'Expense Code Summary'!$C$4:$C$35,0)),\"0000\")","v":"0000"},null,"0000",null,"0000",null,null,null," "]
[null,null,null,null,null,null,null,null,null,{"$f":"IFERROR(INDEX('Expense Code Summary'!D16:D47,MATCH(H56,'Expense Code Summary'!$C$4:$C$35,0)),\"0000\")","v":"0000"},null,"0000",null,"0000",null,null,null," "]
[null,null,null,null,null,null,null,null,null,{"$f":"IFERROR(INDEX('Expense Code Summary'!D17:D48,MATCH(H57,'Expense Code Summary'!$C$4:$C$35,0)),\"0000\")","v":"0000"},null,"0000",null,"0000",null,null,null," "]
[null,null,null,null,null,null,null,null,null,{"$f":"IFERROR(INDEX('Expense Code Summary'!D19:D50,MATCH(H58,'Expense Code Summary'!$C$4:$C$35,0)),\"0000\")","v":"0000"},null,"0000",null,"0000",null,null,null," "]
[null,null,null,null,null,null,null,null,null,{"$f":"IFERROR(INDEX('Expense Code Summary'!D5:D36,MATCH(H59,'Expense Code Summary'!$C$4:$C$35,0)),\"0000\")","v":"0000"},null,"0000",null,"0000",null,null,null," "]
[null,null,null,null,null,null,null,null,null,{"$f":"IFERROR(INDEX('Expense Code Summary'!D6:D37,MATCH(H60,'Expense Code Summary'!$C$4:$C$35,0)),\"0000\")","v":"0000"},null,"0000",null,"0000",null,null,null," "]
[null,null,null,null,null,null,null,null,null,{"$f":"IFERROR(INDEX('Expense Code Summary'!D7:D38,MATCH(H61,'Expense Code Summary'!$C$4:$C$35,0)),\"0000\")","v":"0000"},null,"0000",null,"0000",null,null,null," "]
[null,null,null,null,null,null,null,null,null,{"$f":"IFERROR(INDEX('Expense Code Summary'!D8:D39,MATCH(H62,'Expense Code Summary'!$C$4:$C$35,0)),\"0000\")","v":"0000"},null,"0000",null,"0000",null,null,null," "]
[null,null,null,null,null,null,null,null,null,{"$f":"IFERROR(INDEX('Expense Code Summary'!D9:D40,MATCH(H63,'Expense Code Summary'!$C$4:$C$35,0)),\"0000\")","v":"0000"},null,"0000",null,"0000",null,null,null," "]
[null,null,null,null,null,null,null,null,null,{"$f":"IFERROR(INDEX('Expense Code Summary'!D10:D41,MATCH(H64,'Expense Code Summary'!$C$4:$C$35,0)),\"0000\")","v":"0000"},null,"0000",null,"0000",null,null,null," "]
[null,null,null,null,null,null,null,null,null,{"$f":"IFERROR(INDEX('Expense Code Summary'!D11:D42,MATCH(H65,'Expense Code Summary'!$C$4:$C$35,0)),\"0000\")","v":"0000"},null,"0000",null,"0000",null,null,null," "]
[null,null,null,null,null,null,null,null,null,{"$f":"IFERROR(INDEX('Expense Code Summary'!D12:D43,MATCH(H66,'Expense Code Summary'!$C$4:$C$35,0)),\"0000\")","v":"0000"},null,"0000",null,"0000",null,null,null," "]
[null,null,null,null,null,null,null,null,null,{"$f":"IFERROR(INDEX('Expense Code Summary'!D13:D44,MATCH(H67,'Expense Code Summary'!$C$4:$C$35,0)),\"0000\")","v":"0000"},null,"0000",null,"0000",null,null,null," "]
[null,null,null,null,null,null,null,null,null,{"$f":"IFERROR(INDEX('Expense Code Summary'!D14:D45,MATCH(H68,'Expense Code Summary'!$C$4:$C$35,0)),\"0000\")","v":"0000"},null,"0000",null,"0000",null,null,null," "]
[null,null,null,null,null,null,null,null,null,{"$f":"IFERROR(INDEX('Expense Code Summary'!D15:D46,MATCH(H69,'Expense Code Summary'!$C$4:$C$35,0)),\"0000\")","v":"0000"},null,"0000",null,"0000",null,null,null," "]
[null,null,null,null,null,null,null,null,null,{"$f":"IFERROR(INDEX('Expense Code Summary'!D16:D47,MATCH(H70,'Expense Code Summary'!$C$4:$C$35,0)),\"0000\")","v":"0000"},null,"0000",null,"0000",null,null,null," "]
[null,null,null,null,null,null,null,null,null,{"$f":"IFERROR(INDEX('Expense Code Summary'!D17:D48,MATCH(H71,'Expense Code Summary'!$C$4:$C$35,0)),\"0000\")","v":"0000"},null,"0000",null,"0000",null,null,null," "]
[null,null,null,null,null,null,null,null,null,{"$f":"IFERROR(INDEX('Expense Code Summary'!D18:D49,MATCH(H72,'Expense Code Summary'!$C$4:$C$35,0)),\"0000\")","v":"0000"},null,"0000",null,"0000",null,null,null," "]
[null,null,null,null,null,null,null,null,null,null,null,null,null,"Total",null,{"$f":"SUM(P44:P72)","v":520}]
[]
[null,"SUMMARY"]
[]
[null,"Project ID",null,null,null,"Account Code",null,"Subtotal",null,null,null,"Grant",null,"Total"]
[null,{"$f":"IF(H78>0,IF($L$6=\"0000\",\" \",$L$6),\"\")","v":"1234"},null,null,null,{"$f":"IFERROR(INDEX($R$44:$R$73,MATCH(0,INDEX(COUNTIF($F$77:F77,$R$44:$R$73),0,0),0)),\" \")","v":" "},null,{"$f":"SUMIF($R$44:$R$72,F78,$P$44:$P$72)","v":520},null,null,null,{"$f":"IF(R78=\"0000\",\"(General)\",R78)","v":"(General)"},null,{"$f":"SUMIF($N$44:$N$72,R78,$P$44:$P$72)","v":160},null,{"$f":"IF(L78=\"0000\",\"(General)\",\"\")","v":""},null,{"$f":"IFERROR(INDEX($N$44:$N$72,MATCH(0,INDEX(COUNTIF($R$77:R77,$N$44:$N$72),0,0),0)),\" \")","v":"0000"}]
[null,{"$f":"IF(H79>0,IF($L$6=\"0000\",\" \",$L$6),\"\")","v":""},null,null,null,{"$f":"IFERROR(INDEX($R$44:$R$73,MATCH(0,INDEX(COUNTIF($F$77:F78,$R$44:$R$73),0,0),0)),\" \")","v":0},null,0,null,null,null,{"$f":"IF(R79=\"0000\",\"(General)\",R79)","v":"5657"},null,100,null,{"$f":"IF(L79=\"0000\",\"(General)\",\"\")","v":""},null,{"$f":"IFERROR(INDEX($N$44:$N$72,MATCH(0,INDEX(COUNTIF($R$77:R78,$N$44:$N$72),0,0),0)),\" \")","v":"5657"}]
[null,"1234",null,null,null,{"$f":"IFERROR(INDEX($R$44:$R$73,MATCH(0,INDEX(COUNTIF($F$77:F79,$R$44:$R$73),0,0),0)),\" \")","v":" "},null,520,null,null,null,"5656",null,260,null,"",null,{"$f":"IFERROR(INDEX($N$44:$N$72,MATCH(0,INDEX(COUNTIF($R$77:R79,$N$44:$N$72),0,0),0)),\" \")","v":"5656"}]
[null,"1234",null,null,null,{"$f":"IFERROR(INDEX($R$44:$R$73,MATCH(0,INDEX(COUNTIF($F$77:F80,$R$44:$R$73),0,0),0)),\" \")","v":" "},null,520,null,null,null," ",null,0,null,"",null,{"$f":"IFERROR(INDEX($N$44:$N$72,MATCH(0,INDEX(COUNTIF($R$77:R80,$N$44:$N$72),0,0),0)),\" \")","v":" "}]
[null,{"$f":"IF(H82>0,IF($L$6=\"0000\",\" \",$L$6),\"\")","v":"1234"},null,null,null,{"$f":"IFERROR(INDEX($R$44:$R$73,MATCH(0,INDEX(COUNTIF($F$77:F81,$R$44:$R$73),0,0),0)),\" \")","v":" "},null,520,null,null,null," ",null,0,null,"",null,{"$f":"IFERROR(INDEX($N$44:$N$72,MATCH(0,INDEX(COUNTIF($R$77:R81,$N$44:$N$72),0,0),0)),\" \")","v":" "}]
[null,{"$f":"IF(H83>0,IF($L$6=\"0000\",\" \",$L$6),\"\")","v":"1234"},null,null,null,{"$f":"IFERROR(INDEX($R$44:$R$73,MATCH(0,INDEX(COUNTIF($F$77:F82,$R$44:$R$73),0,0),0)),\" \")","v":" "},null,520,null,null,null," ",null,0,null,null,null,{"$f":"IFERROR(INDEX($N$44:$N$72,MATCH(0,INDEX(COUNTIF($R$77:R82,$N$44:$N$72),0,0),0)),\" \")","v":" "}]
[null,"1234",null,null,null,{"$f":"IFERROR(INDEX($R$44:$R$73,MATCH(0,INDEX(COUNTIF($F$77:F83,$R$44:$R$73),0,0),0)),\" \")","v":" "},null,520,null,null,null," ",null,0,null,null,null,{"$f":"IFERROR(INDEX($N$44:$N$72,MATCH(0,INDEX(COUNTIF($R$77:R83,$N$44:$N$72),0,0),0)),\" \")","v":" "}]
[null,"1234",null,null,null,{"$f":"IFERROR(INDEX($R$44:$R$73,MATCH(0,INDEX(COUNTIF($F$77:F84,$R$44:$R$73),0,0),0)),\" \")","v":" "},null,520,null,null,null," ",null,0,null,null,null,{"$f":"IFERROR(INDEX($N$44:$N$72,MATCH(0,INDEX(COUNTIF($R$77:R84,$N$44:$N$72),0,0),0)),\" \")","v":" "}]
[null,"1234",null,null,null,{"$f":"IFERROR(INDEX($R$44:$R$73,MATCH(0,INDEX(COUNTIF($F$77:F85,$R$44:$R$73),0,0),0)),\" \")","v":" "},null,520,null,null,null," ",null,0,null,null,null,{"$f":"IFERROR(INDEX($N$44:$N$72,MATCH(0,INDEX(COUNTIF($R$77:R85,$N$44:$N$72),0,0),0)),\" \")","v":" "}]
[null,"1234",null,null,null,{"$f":"IFERROR(INDEX($R$44:$R$73,MATCH(0,INDEX(COUNTIF($F$77:F86,$R$44:$R$73),0,0),0)),\" \")","v":" "},null,520,null,null,null," ",null,0,null,null,null,{"$f":"IFERROR(INDEX($N$44:$N$72,MATCH(0,INDEX(COUNTIF($R$77:R86,$N$44:$N$72),0,0),0)),\" \")","v":" "}]
[null,"1234",null,null,null,{"$f":"IFERROR(INDEX($R$44:$R$73,MATCH(0,INDEX(COUNTIF($F$77:F87,$R$44:$R$73),0,0),0)),\" \")","v":" "},null,520,null,null,null," ",null,0,null,null,null,{"$f":"IFERROR(INDEX($N$44:$N$72,MATCH(0,INDEX(COUNTIF($R$77:R87,$N$44:$N$72),0,0),0)),\" \")","v":" "}]
[null,"1234",null,null,null,{"$f":"IFERROR(INDEX($R$44:$R$73,MATCH(0,INDEX(COUNTIF($F$77:F88,$R$44:$R$73),0,0),0)),\" \")","v":" "},null,520,null,null,null," ",null,0,null,null,null,{"$f":"IFERROR(INDEX($N$44:$N$72,MATCH(0,INDEX(COUNTIF($R$77:R88,$N$44:$N$72),0,0),0)),\" \")","v":" "}]
[null,"1234",null,null,null,{"$f":"IFERROR(INDEX($R$44:$R$73,MATCH(0,INDEX(COUNTIF($F$77:F89,$R$44:$R$73),0,0),0)),\" \")","v":" "},null,520,null,null,null," ",null,0,null,null,null,{"$f":"IFERROR(INDEX($N$44:$N$72,MATCH(0,INDEX(COUNTIF($R$77:R89,$N$44:$N$72),0,0),0)),\" \")","v":" "}]
[null,"1234",null,null,null,{"$f":"IFERROR(INDEX($R$44:$R$73,MATCH(0,INDEX(COUNTIF($F$77:F90,$R$44:$R$73),0,0),0)),\" \")","v":" "},null,520,null,null,null," ",null,0,null,null,null,{"$f":"IFERROR(INDEX($N$44:$N$72,MATCH(0,INDEX(COUNTIF($R$77:R90,$N$44:$N$72),0,0),0)),\" \")","v":" "}]
[null,"1234",null,null,null,{"$f":"IFERROR(INDEX($R$44:$R$73,MATCH(0,INDEX(COUNTIF($F$77:F91,$R$44:$R$73),0,0),0)),\" \")","v":" "},null,520,null,null,null," ",null,0,null,null,null,{"$f":"IFERROR(INDEX($N$44:$N$72,MATCH(0,INDEX(COUNTIF($R$77:R91,$N$44:$N$72),0,0),0)),\" \")","v":" "}]
[null,"1234",null,null,null,{"$f":"IFERROR(INDEX($R$44:$R$73,MATCH(0,INDEX(COUNTIF($F$77:F92,$R$44:$R$73),0,0),0)),\" \")","v":" "},null,520,null,null,null," ",null,0,null,null,null,{"$f":"IFERROR(INDEX($N$44:$N$72,MATCH(0,INDEX(COUNTIF($R$77:R92,$N$44:$N$72),0,0),0)),\" \")","v":" "}]
[null,"1234",null,null,null,{"$f":"IFERROR(INDEX($R$44:$R$73,MATCH(0,INDEX(COUNTIF($F$77:F93,$R$44:$R$73),0,0),0)),\" \")","v":" "},null,520,null,null,null,{"$f":"IF(R94=\"0000\",\"(General)\",R94)","v":" "},null,0,null,"",null,{"$f":"IFERROR(INDEX($N$44:$N$72,MATCH(0,INDEX(COUNTIF($R$77:R93,$N$44:$N$72),0,0),0)),\" \")","v":" "}]
[null,"1234",null,null,null,{"$f":"IFERROR(INDEX($R$44:$R$73,MATCH(0,INDEX(COUNTIF($F$77:F94,$R$44:$R$73),0,0),0)),\" \")","v":" "},null,520,null,null,null," ",null,0,null,"",null,{"$f":"IFERROR(INDEX($N$44:$N$72,MATCH(0,INDEX(COUNTIF($R$77:R94,$N$44:$N$72),0,0),0)),\" \")","v":" "}]
[null,"1234",null,null,null,{"$f":"IFERROR(INDEX($R$44:$R$73,MATCH(0,INDEX(COUNTIF($F$77:F95,$R$44:$R$73),0,0),0)),\" \")","v":" "},null,520,null,null,null," ",null,0,null,"",null,{"$f":"IFERROR(INDEX($N$44:$N$72,MATCH(0,INDEX(COUNTIF($R$77:R95,$N$44:$N$72),0,0),0)),\" \")","v":" "}]
[null,"1234",null,null,null,{"$f":"IFERROR(INDEX($R$44:$R$73,MATCH(0,INDEX(COUNTIF($F$77:F96,$R$44:$R$73),0,0),0)),\" \")","v":" "},null,520,null,null,null," ",null,0,null,"",null,{"$f":"IFERROR(INDEX($N$44:$N$72,MATCH(0,INDEX(COUNTIF($R$77:R96,$N$44:$N$72),0,0),0)),\" \")","v":" "}]
[null,"1234",null,null,null,{"$f":"IFERROR(INDEX($R$44:$R$73,MATCH(0,INDEX(COUNTIF($F$77:F97,$R$44:$R$73),0,0),0)),\" \")","v":" "},null,520,null,null,null," ",null,0,null,"",null,{"$f":"IFERROR(INDEX($N$44:$N$72,MATCH(0,INDEX(COUNTIF($R$77:R97,$N$44:$N$72),0,0),0)),\" \")","v":" "}]
[null,"1234",null,null,null,{"$f":"IFERROR(INDEX($R$44:$R$73,MATCH(0,INDEX(COUNTIF($F$77:F98,$R$44:$R$73),0,0),0)),\" \")","v":" "},null,520,null,null,null," ",null,0,null,"",null,{"$f":"IFERROR(INDEX($N$44:$N$72,MATCH(0,INDEX(COUNTIF($R$77:R98,$N$44:$N$72),0,0),0)),\" \")","v":" "}]
[null,"1234",null,null,null,{"$f":"IFERROR(INDEX($R$44:$R$73,MATCH(0,INDEX(COUNTIF($F$77:F99,$R$44:$R$73),0,0),0)),\" \")","v":" "},null,520,null,null,null," ",null,0,null,"",null,{"$f":"IFERROR(INDEX($N$44:$N$72,MATCH(0,INDEX(COUNTIF($R$77:R99,$N$44:$N$72),0,0),0)),\" \")","v":" "}]
[null,null,null,null,null,"Total:",null,{"$f":"SUM(H78:H100)","v":11440}]
[]
[]
[null,"Project Approval:"]
[]
[]
[null,"RPA Approval:"]
[]
[]
[null,"Date Approved:"]

{"sheet":"Expense Code Summary","index":2,"n_rows":62,"n_cols":15,"rows_kept":62,"cut":false,"hidden":false,"merged":[]}
[null,"Expense Codes"]
[null,"Key"]
[null,"OPS : Operations"]
[null,"FEES : Professional Fees"]
[null,"TRAV : Travel "]
[null,"OTHER : Other Activities",null,null,null,null,null,null,"Project ID",null,"Description",null,null,"Revenue source"]
[null,null,null,null,null,null,null,null,"6076-00"," ","Fund for Shared Insight",{"$f":"CONCATENATE(I7,J7,K7)","v":"6076-00 Fund for Shared Insight"}," ","6076-General","Fund for Shared Insight"]
[null,null,null,null,null,null,null,null,"6076-01"," ","Listen for Good",{"$f":"CONCATENATE(I8,J8,K8)","v":"6076-01 Listen for Good"}," ","6076-Listenfo","Listen for Good Grantmaking"]
[null,null,null,null,null,"Expense Type","Code",null,null,null,null,null,null,"6076-Cohort1","Cohort 1"]
[null,null,"OPS: ","Building Maintenance",null,{"$f":"CONCATENATE($C$10,D10)","v":"OPS: Building Maintenance"},6210,null,null,null,null,null,null,"6076-Cohort2","Cohort 2"]
[null,null,null,"Computer (Hardware) Expense",null,{"$f":"CONCATENATE($C$10,D11)","v":"OPS: Computer (Hardware) Expense"},6315,null,null,null,null,null,null,"6076-Cohort3","Cohort 3"]
[null,null,null,"Equipment Rental & Maintenance",null,"OPS: Equipment Rental & Maintenance",6230]
[null,null,null,"Express/Overnight Delivery",null,"OPS: Express/Overnight Delivery",6425]
[null,null,null,"Filing Fees",null,"OPS: Filing Fees",6054]
[null,null,null,"Housekeeping Supplies",null,"OPS: Housekeeping Supplies",6212]
[null,null,null,"Internal Corporate Events",null,"OPS: Internal Corporate Events",6410]
[null,null,null,"Internet Communications",null,"OPS: Internet Communications",6305]
[null,null,null,"Memberships, Dues and Registrations",null,"OPS: Memberships, Dues and Registrations",6050]
[null,null,null,"Office Equipment and Furniture",null,"OPS: Office Equipment and Furniture",6235]
[null,null,null,"Office Supplies",null,"OPS: Office Supplies",6400]
[null,null,null,"Organization Relocation Costs",null,"OPS: Organization Relocation Costs",6225]
[null,null,null,"Pantry Supplies",null,"OPS: Pantry Supplies",6405]
[null,null,null,"Postage",null,"OPS: Postage",6420]
[null,null,null,"Printing and Copying",null,"OPS: Printing and Copying",6415]
[null,null,null,"Professional Development including Conferences",null,"OPS: Professional Development including Conferences",5145]
[null,null,null,"Real Estate Taxes",null,"OPS: Real Estate Taxes",6215]
[null,null,null,"Rent",null,"OPS: Rent",6200]
[null,null,null,"Software Expense",null,"OPS: Software Expense",6320]
[null,null,null,"Storage",null,"OPS: Storage",6220]
[null,null,null,"Telecommunications",null,"OPS: Telecommunications",6300]
[null,null,null,"Utilities",null,"OPS: Utilities",6205]
[null,null,null,"Website Expense",null,"OPS: Website Expense",6310]
[null,null,"FEES: "," IT Consultant",null,{"$f":"CONCATENATE($C$33,D33)","v":"FEES:  IT Consultant"},6001]
[null,null,null,"Audit Fees",null,{"$f":"CONCATENATE($C$33,D34)","v":"FEES: Audit Fees"},6025]
[null,null,null,"Communications Consultant",null,"FEES: Communications Consultant",6003]
[null,null,null,"Consultant",null,"FEES: Consultant",6000]
[null,null,null,"Design Consultant",null,"FEES: Design Consultant",6002]
[null,null,null,"Evaluation Consultant",null,"FEES: Evaluation Consultant",6006]
[null,null,null,"Insurance",null,"FEES: Insurance",6080]
[null,null,null,"Investment Consultant",null,"FEES: Investment Consultant",6007]
[null,null,null,"Legal Fees",null,"FEES: Legal Fees",6020]
[null,null,null,"Organizational Dev Consultant",null,"FEES: Organizational Dev Consultant",6005]
[null,null,null,"Professional Fundraising Consultant",null,"FEES: Professional Fundraising Consultant",6008]
[null,null,null,"Recruiting Costs",null,"FEES: Recruiting Costs",6042]
[null,null,null,"Research Consultant",null,"FEES: Research Consultant",6004]
[null,null,null,"Temporary Employment",null,"FEES: Temporary Employment",6040]
[null,null,"TRAV: ","Local Travel and Meals",null,{"$f":"CONCATENATE($C$47,D47)","v":"TRAV: Local Travel and Meals"},7220]
[null,null,null,"Non-Staff Local Travel and Meals",null,{"$f":"CONCATENATE($C$47,D48)","v":"TRAV: Non-Staff Local Travel and Meals"},7221]
[null,null,null,"Non-Staff Travel - Accommodations",null,"TRAV: Non-Staff Travel - Accommodations",7206]
[null,null,null,"Non-Staff Travel - Meals & Incidentals",null,"TRAV: Non-Staff Travel - Meals & Incidentals",7211]
[null,null,null,"Non-Staff Travel - Transportation",null,"TRAV: Non-Staff Travel - Transportation",7201]
[null,null,null,"Travel - Accommodations",null,"TRAV: Travel - Accommodations",7205]
[null,null,null,"Travel - Meals & Incidentals",null,"TRAV: Travel - Meals & Incidentals",7210]
[null,null,null,"Travel - Transportation",null,"TRAV: Travel - Transportation",7200]
[null,null,"OTHER: ","Board Meeting Expense",null,{"$f":"CONCATENATE($C$55,D55)","v":"OTHER: Board Meeting Expense"},7250]
[null,null,null,"Business Meetings",null,{"$f":"CONCATENATE($C$55,D56)","v":"OTHER: Business Meetings"},7320]
[null,null,null,"Conferences (Sponsored Projects use only)",null,"OTHER: Conferences (Sponsored Projects use only)",7230]
[null,null,null,"Events",null,"OTHER: Events",7325]
[null,null,null,"Fundraising Expenses",null,"OTHER: Fundraising Expenses",7300]
[null,null,null,"Marketing and Public Relations",null,"OTHER: Marketing and Public Relations",7305]
[null,null,null,"Program Printing/Publishing",null,"OTHER: Program Printing/Publishing",7335]
[null,null,null,"Publications and Subscriptions",null,"OTHER: Publications and Subscriptions",7330]

{"sheet":"GT_Custom","index":3,"n_rows":8,"n_cols":2,"rows_kept":8,"cut":false,"hidden":true,"merged":[]}
["C1","Custom 1"]
["C2","Custom 2"]
["C3","Custom 3"]
["C4","Custom 4"]
["C5","Custom 5"]
["C6","Custom 6"]
["C7","Custom 7"]
["C8","Custom 8"]